bitfinex/quotes_BTCUSD_20250831
["timestamp","ask_amount","ask_price","bid_price","bid_amount"]
[1756644449590,0.20546628,108560.0,108550.0,0.18243882]
[1756644449824,0.20546628,108560.0,108550.0,0.18039882]
[1756644450029,0.20546628,108560.0,108550.0,0.18249882]
[1756644451469,0.20546628,108560.0,108550.0,0.18039882]
[1756644451860,0.20546628,108560.0,108550.0,0.18249882]
[1756644455022,0.20546628,108560.0,108550.0,0.36674571]
[1756644455449,0.20546628,108560.0,108550.0,0.18249882]
[1756644459946,0.01199505,108560.0,108550.0,0.45972572]
[1756644460155,0.21191366,108570.0,108560.0,0.18422991]
[1756644460156,0.18422766,108570.0,108560.0,0.18422991]
[1756644460351,0.18422766,108570.0,108560.0,0.18948786]
[1756644460832,0.01220114,108570.0,108560.0,0.18948786]
[1756644461224,0.53340577,108580.0,108570.0,0.02093882]
[1756644461424,0.53340577,108580.0,108570.0,0.18273148]
[1756644461607,0.53340577,108580.0,108570.0,0.18042882]
[1756644462583,0.19340577,108580.0,108570.0,0.18042882]
[1756644463503,0.20733546,108580.0,108570.0,0.18042882]
[1756644463947,0.01392969,108580.0,108570.0,0.67846178]
[1756644465212,0.01192969,108580.0,108570.0,0.67846178]
[1756644465407,0.001,108580.0,108570.0,0.67846178]
[1756644465833,0.52594441,108590.0,108570.0,0.67846178]
[1756644466042,0.52594441,108590.0,108580.0,0.02324126]
[1756644466250,0.52594441,108590.0,108580.0,0.02631126]
[1756644466449,0.53785077,108590.0,108580.0,0.02841126]
[1756644468346,0.53785077,108590.0,108580.0,0.02941126]
[1756644468767,0.53785077,108590.0,108580.0,0.02841126]
[1756644468916,0.53885077,108590.0,108580.0,0.02841126]
[1756644469117,0.53885077,108590.0,108580.0,0.03041126]
[1756644469323,0.53785077,108590.0,108580.0,0.03041126]
[1756644471541,0.53708822,108590.0,108580.0,0.03041126]
[1756644471726,0.19708822,108590.0,108580.0,0.21460724]
[1756644471930,0.19708822,108590.0,108580.0,0.2123048]
[1756644474476,0.19708822,108590.0,108580.0,0.02810882]
[1756644474718,0.19708822,108590.0,108580.0,0.50758725]
[1756644474930,0.19708822,108590.0,108580.0,0.50528481]
[1756644478517,0.19708822,108590.0,108580.0,0.32108883]
[1756644478672,0.19708822,108590.0,108580.0,0.47318883]
[1756644479123,0.19708822,108590.0,108580.0,0.31898883]
[1756644479435,0.19708822,108590.0,108580.0,0.37713882]
[1756644480232,0.19708822,108590.0,108580.0,0.38020882]
[1756644480672,0.19708822,108590.0,108580.0,0.17713882]
[1756644480874,0.19708822,108590.0,108580.0,0.02293882]
[1756644481253,0.19708822,108590.0,108580.0,0.17713882]
[1756644481464,0.19708822,108590.0,108580.0,0.17513882]
[1756644481671,0.19708822,108590.0,108580.0,0.17820882]
[1756644481871,0.19808822,108590.0,108580.0,0.18361126]
[1756644482189,0.19808822,108590.0,108580.0,0.18130882]
[1756644482788,0.19808822,108590.0,108580.0,0.18030882]
[1756644483167,0.19808822,108590.0,108580.0,0.3645048]
[1756644484200,0.19708822,108590.0,108580.0,0.18230882]
[1756644489239,0.01285436,108590.0,108580.0,0.45948481]
[1756644489459,0.000948,108590.0,108580.0,0.45948481]
[1756644491650,0.000948,108590.0,108580.0,0.48716081]
[1756644496561,0.18512702,108590.0,108580.0,0.33296081]
[1756644496768,0.18512702,108590.0,108580.0,0.48716081]
[1756644497321,0.000948,108590.0,108580.0,0.48716081]
[1756644503874,0.000948,108590.0,108580.0,0.33296081]
[1756644504129,0.000948,108590.0,108580.0,0.48712081]
[1756644510026,0.000948,108590.0,108580.0,0.68712081]
[1756644515031,0.000948,108590.0,108580.0,0.53296081]
[1756644515239,0.000948,108590.0,108580.0,0.68712081]
[1756644517677,0.18512702,108590.0,108580.0,0.68716081]
[1756644518147,0.000948,108590.0,108580.0,0.68716081]
[1756644519787,0.18512702,108590.0,108580.0,0.68712081]
[1756644519987,0.18512702,108590.0,108580.0,0.50292483]
[1756644520192,0.18512702,108590.0,108580.0,0.47314883]
[1756644520444,0.18512702,108590.0,108580.0,0.65935481]
[1756644525200,0.18512702,108590.0,108580.0,0.50519481]
[1756644525432,0.18512702,108590.0,108580.0,0.65935481]
[1756644526049,0.18512702,108590.0,108580.0,0.50519481]
[1756644526228,0.18512702,108590.0,108580.0,0.65935481]
[1756644526411,0.18512702,108590.0,108580.0,0.50519481]
[1756644526642,0.18512702,108590.0,108580.0,0.65935481]
[1756644528264,0.18512702,108590.0,108580.0,0.45935481]
[1756644528867,0.18512702,108590.0,108580.0,0.65935481]
[1756644529075,0.18512702,108590.0,108580.0,0.202]
[1756644529292,0.18512702,108590.0,108580.0,0.15616]
[1756644529531,0.18512702,108590.0,108580.0,0.17709882]
[1756644531322,0.18512702,108590.0,108580.0,0.02293882]
[1756644531647,0.18512702,108590.0,108580.0,0.17709882]
[1756644531857,0.52512702,108590.0,108580.0,0.002]
[1756644532051,0.52512702,108590.0,108580.0,0.15616]
[1756644532256,0.52512702,108590.0,108580.0,0.002]
[1756644532392,0.52512702,108590.0,108580.0,0.15616]
[1756644533480,0.52512702,108590.0,108580.0,0.15416]
[1756644534458,0.55281002,108590.0,108580.0,0.15416]
[1756644534676,0.55281002,108590.0,108580.0,0.15516]
[1756644535341,0.55381002,108590.0,108580.0,0.15516]
[1756644536910,0.55381002,108590.0,108580.0,0.001]
[1756644543764,0.55381002,108590.0,108580.0,0.02725882]
[1756644553575,0.55443524,108590.0,108580.0,0.02725882]
[1756644554786,0.55381002,108590.0,108580.0,0.02725882]
[1756644554961,0.55443518,108590.0,108580.0,0.02725882]
[1756644561056,0.55131453,108590.0,108580.0,0.02725882]
[1756644561437,0.55068937,108590.0,108580.0,0.02725882]
[1756644562831,0.55068937,108590.0,108580.0,0.02509882]
[1756644562996,0.55134776,108590.0,108580.0,0.02509882]
[1756644564603,0.55134776,108590.0,108580.0,0.02717882]
[1756644570369,0.55068937,108590.0,108580.0,0.02717882]
[1756644570773,0.55137305,108590.0,108580.0,0.02717882]
[1756644571150,0.55068937,108590.0,108580.0,0.02717882]
[1756644571744,0.551376,108590.0,108580.0,0.02717882]
[1756644572800,0.55068937,108590.0,108580.0,0.02717882]
[1756644573415,0.55068937,108590.0,108580.0,0.02509882]
[1756644573625,0.64366938,108590.0,108580.0,0.001]
[1756644573835,0.6443589,108590.0,108580.0,1e-08]
[1756644575032,0.52421295,108570.0,108560.0,0.02102677]
[1756644575234,0.52421295,108570.0,108560.0,0.02412677]
[1756644575678,0.55189995,108570.0,108560.0,0.02412677]
[1756644576410,0.55189995,108570.0,108560.0,0.02102677]
[1756644577017,0.55189995,108570.0,108560.0,0.02512677]
[1756644577243,0.55259744,108570.0,108560.0,0.02512677]
[1756644578812,0.55189995,108570.0,108560.0,0.02512677]
[1756644579464,0.55259434,108570.0,108560.0,0.02202677]
[1756644581842,0.55259434,108570.0,108560.0,0.02512677]
[1756644582823,0.55259434,108570.0,108560.0,0.02720677]
[1756644583790,0.55189995,108570.0,108560.0,0.02720677]
[1756644584816,0.55258785,108570.0,108560.0,0.02720677]
[1756644586189,0.55189995,108570.0,108560.0,0.02720677]
[1756644586859,0.55259245,108570.0,108560.0,0.02720677]
[1756644587861,0.55259245,108570.0,108560.0,0.02512677]
[1756644589311,0.55189995,108570.0,108560.0,0.02512677]
[1756644589726,0.55259752,108570.0,108560.0,0.02512677]
[1756644590695,0.55189995,108570.0,108560.0,0.02512677]
[1756644590901,0.5526002,108570.0,108560.0,0.02512677]
[1756644592947,0.5526002,108570.0,108560.0,0.02728677]
[1756644595022,0.5526002,108570.0,108560.0,0.02202677]
[1756644595374,0.5526002,108570.0,108560.0,0.02517677]
[1756644599273,0.5526002,108570.0,108560.0,0.02202677]
[1756644600315,0.5526002,108570.0,108560.0,0.02102677]
[1756644600711,0.5536002,108570.0,108560.0,0.02102677]
[1756644601911,0.5556002,108570.0,108560.0,0.02102677]
[1756644605059,0.5556002,108570.0,108560.0,0.02417677]
[1756644605212,0.54862446,108570.0,108560.0,0.02417677]
[1756644607103,0.64160447,108570.0,108560.0,0.00323795]
[1756644607224,0.64160447,108570.0,108560.0,8.795e-05]
[1756644608330,0.64160447,108570.0,108560.0,0.00323795]
[1756644611459,0.79600447,108570.0,108560.0,0.00323795]
[1756644614387,0.64160447,108570.0,108560.0,0.00323795]
[1756644614597,0.79596447,108570.0,108560.0,0.00539795]
[1756644616505,0.64160447,108570.0,108560.0,0.00539795]
[1756644616976,0.64160447,108570.0,108560.0,0.00323795]
[1756644617198,0.79592447,108570.0,108560.0,8.795e-05]
[1756644620301,0.79522422,108570.0,108560.0,8.795e-05]
[1756644620865,0.52424689,108550.0,108540.0,0.02388882]
[1756644621094,0.52424689,108550.0,108540.0,0.02393647]
[1756644621283,0.52424689,108550.0,108540.0,0.02596647]
[1756644621489,0.55193889,108550.0,108540.0,0.02596647]
[1756644622393,0.55267914,108550.0,108540.0,0.02596647]
[1756644622799,0.55193889,108550.0,108540.0,0.02696647]
[1756644623039,0.5526658,108550.0,108540.0,0.02696647]
[1756644623436,0.5526658,108550.0,108540.0,0.02796647]
[1756644624584,0.55193889,108550.0,108540.0,0.02796647]
[1756644624741,0.5526738,108550.0,108540.0,0.02796647]
[1756644627909,0.55193889,108550.0,108540.0,0.02796647]
[1756644629442,0.367692,108550.0,108540.0,0.02796647]
[1756644629653,0.55193889,108550.0,108540.0,0.02593647]
[1756644629862,0.55265313,108550.0,108540.0,0.02493647]
[1756644630219,0.55265313,108550.0,108540.0,0.02393647]
[1756644632649,0.55193889,108550.0,108540.0,0.02393647]
[1756644633064,0.55265051,108550.0,108540.0,0.02393647]
[1756644634841,0.55193889,108550.0,108540.0,0.02393647]
[1756644635264,0.55265769,108550.0,108540.0,0.02596647]
[1756644636536,0.55193889,108550.0,108540.0,0.02596647]
[1756644636929,0.55265555,108550.0,108540.0,0.02596647]
[1756644641351,0.55193889,108550.0,108540.0,0.02596647]
[1756644642188,0.55264594,108550.0,108540.0,0.02596647]
[1756644642605,0.55193889,108550.0,108540.0,0.02596647]
[1756644643479,0.55264696,108550.0,108540.0,0.02596647]
[1756644644032,0.55193889,108550.0,108540.0,0.02596647]
[1756644644753,0.55263944,108550.0,108540.0,0.02596647]
[1756644647663,0.55193889,108550.0,108540.0,0.02596647]
[1756644648109,0.55265116,108550.0,108540.0,0.02596647]
[1756644664253,0.55265116,108550.0,108540.0,0.02098647]
[1756644665087,0.70693116,108550.0,108540.0,0.02098647]
[1756644665296,0.70693116,108550.0,108540.0,0.02410647]
[1756644665506,0.70693116,108550.0,108540.0,0.02098647]
[1756644665836,0.70693116,108550.0,108540.0,0.02410647]
[1756644667118,0.55265116,108550.0,108540.0,0.02410647]
[1756644667323,0.55265116,108550.0,108540.0,0.02614647]
[1756644668481,0.55193889,108550.0,108540.0,0.02614647]
[1756644668891,0.55269283,108550.0,108540.0,0.02614647]
[1756644670020,0.55269283,108550.0,108540.0,0.02410647]
[1756644670229,0.6449189,108550.0,108540.0,0.02098647]
[1756644670782,0.64567636,108550.0,108540.0,0.02098647]
[1756644671004,0.64567636,108550.0,108540.0,4.765e-05]
[1756644671650,0.30767636,108550.0,108540.0,4.765e-05]
[1756644671824,0.30867636,108550.0,108540.0,4.765e-05]
[1756644672037,0.30667636,108550.0,108540.0,4.765e-05]
[1756644672193,0.31067636,108550.0,108540.0,4.765e-05]
[1756644674022,0.65067636,108550.0,108540.0,4.765e-05]
[1756644677425,0.6499189,108550.0,108540.0,4.765e-05]
[1756644677872,0.65069216,108550.0,108540.0,4.765e-05]
[1756644681912,0.80493216,108550.0,108540.0,4.765e-05]
[1756644682149,0.65069216,108550.0,108540.0,4.765e-05]
[1756644682370,0.80493216,108550.0,108540.0,4.765e-05]
[1756644683588,0.80493216,108550.0,108540.0,1e-08]
[1756644684608,0.65069216,108550.0,108540.0,1e-08]
[1756644684826,0.80493216,108550.0,108540.0,1e-08]
[1756644687982,0.58966359,108550.0,108540.0,1e-08]
[1756644688250,0.61060259,108550.0,108540.0,1e-08]
[1756644688568,0.79484948,108550.0,108540.0,1e-08]
[1756644690589,0.79407622,108550.0,108540.0,1e-08]
[1756644691534,0.63983622,108550.0,108540.0,1e-08]
[1756644691740,0.79482713,108550.0,108540.0,1e-08]
[1756644692387,0.69936256,108550.0,108540.0,1e-08]
[1756644693879,0.54512256,108550.0,108540.0,0.00509001]
[1756644694094,0.69936256,108550.0,108540.0,0.00509001]
[1756644694303,0.54512256,108550.0,108540.0,0.00509001]
[1756644694529,0.69936256,108550.0,108540.0,0.00509001]
[1756644694970,0.69861165,108550.0,108540.0,0.00509001]
[1756644695189,0.6993468,108550.0,108540.0,0.00509001]
[1756644697606,0.60636679,108550.0,108540.0,0.02602883]
[1756644703592,0.60636679,108550.0,108540.0,0.02402883]
[1756644704778,0.6993468,108550.0,108540.0,0.00309001]
[1756644705561,0.6993468,108550.0,108540.0,0.00509001]
[1756644706895,0.68931093,108550.0,108540.0,0.00509001]
[1756644708514,0.45314105,108550.0,108540.0,0.00509001]
[1756644709324,0.45314105,108550.0,108540.0,0.00309001]
[1756644713329,0.18428084,108530.0,108520.0,0.02093882]
[1756644713541,0.18428084,108530.0,108520.0,0.02102665]
[1756644713746,0.18501433,108530.0,108520.0,0.02298665]
[1756644714152,0.21271033,108530.0,108520.0,0.02298665]
[1756644714572,0.21271033,108530.0,108520.0,0.02398665]
[1756644715380,0.21271033,108530.0,108520.0,0.02706665]
[1756644716042,0.21271033,108530.0,108520.0,0.02806665]
[1756644717248,0.36893033,108530.0,108520.0,0.02302665]
[1756644717669,0.22503216,108530.0,108520.0,0.02302665]
[1756644717930,0.37927216,108530.0,108520.0,0.02610665]
[1756644718131,0.37927216,108530.0,108520.0,0.02806665]
[1756644718567,0.47225217,108530.0,108520.0,0.00208783]
[1756644718759,0.47225217,108530.0,108510.0,0.02401882]
[1756644718760,0.18429782,108520.0,108510.0,0.02401882]
[1756644719049,0.18429782,108520.0,108510.0,0.02093882]
[1756644719250,0.18627782,108520.0,108510.0,0.02093882]
[1756644719464,0.21397982,108520.0,108510.0,0.02093882]
[1756644719654,0.30695983,108520.0,108510.0,0.02093882]
[1756644720420,0.30695983,108520.0,108510.0,0.02193882]
[1756644720929,0.64695983,108520.0,108510.0,0.02193882]
[1756644721819,0.64695983,108520.0,108510.0,0.001]
[1756644722039,0.64695983,108520.0,108510.0,0.002]
[1756644722441,0.64765984,108520.0,108510.0,0.002]
[1756644722645,0.64765984,108520.0,108510.0,0.001]
[1756644722857,0.80189984,108520.0,108510.0,0.001]
[1756644723402,0.80289984,108520.0,108510.0,0.00504]
[1756644723766,0.80389984,108520.0,108510.0,0.00504]
[1756644725020,0.64767984,108520.0,108510.0,0.02597882]
[1756644725225,0.55469983,108520.0,108510.0,0.02597882]
[1756644725426,0.55469983,108520.0,108510.0,0.18021882]
[1756644725626,0.21469983,108520.0,108510.0,0.18021882]
[1756644726758,0.21369983,108520.0,108510.0,0.18021882]
[1756644727176,0.21469983,108520.0,108510.0,0.18021882]
[1756644727877,0.21369983,108520.0,108510.0,0.18021882]
[1756644728312,0.21369983,108520.0,108510.0,0.02597882]
[1756644728509,0.21567983,108520.0,108510.0,0.02293882]
[1756644729141,0.21567983,108520.0,108510.0,0.02801882]
[1756644729294,0.21567983,108520.0,108510.0,0.02997882]
[1756644729738,0.21567983,108520.0,108510.0,0.02797882]
[1756644730374,0.21467983,108520.0,108510.0,0.02597882]
[1756644730571,0.21567983,108520.0,108510.0,0.02597882]
[1756644731700,0.21567983,108520.0,108510.0,0.02401882]
[1756644733260,0.21567983,108520.0,108510.0,0.02597882]
[1756644733480,0.21567983,108520.0,108510.0,0.02401882]
[1756644733929,0.21567983,108520.0,108510.0,0.02093882]
[1756644734771,0.21711983,108520.0,108510.0,0.02093882]
[1756644735022,0.55711983,108520.0,108510.0,0.02093882]
[1756644735248,0.55567983,108520.0,108510.0,0.02093882]
[1756644736325,0.70991983,108520.0,108510.0,0.02093882]
[1756644737352,0.1843148,108510.0,108500.0,2.34281795]
[1756644737569,0.1843148,108510.0,108500.0,2.51995677]
[1756644738787,0.2120188,108510.0,108500.0,2.52095677]
[1756644738987,0.2120188,108510.0,108500.0,2.52195677]
[1756644743878,0.5539888,108510.0,108500.0,2.52195677]
[1756644745193,0.5520188,108510.0,108500.0,2.52095677]
[1756644746092,0.5520188,108510.0,108500.0,2.51995677]
[1756644746519,0.5530188,108510.0,108500.0,2.52095677]
[1756644746926,0.5520188,108510.0,108500.0,2.52095677]
[1756644747330,0.5520188,108510.0,108500.0,2.52195677]
[1756644755645,0.5520188,108510.0,108500.0,2.52205677]
[1756644756058,0.5520188,108510.0,108500.0,2.36781677]
[1756644756207,0.5539888,108510.0,108500.0,2.52205677]
[1756644756420,0.5539888,108510.0,108500.0,2.52009677]
[1756644757912,0.5539888,108510.0,108500.0,2.52221677]
[1756644758330,0.5539888,108510.0,108500.0,2.36797677]
[1756644758449,0.5539888,108510.0,108500.0,2.52221677]
[1756644759176,0.5539888,108510.0,108500.0,2.36797677]
[1756644759375,0.5539888,108510.0,108500.0,2.52221677]
[1756644759756,0.5539888,108510.0,108500.0,2.52121677]
[1756644759964,0.5539888,108510.0,108500.0,2.36697677]
[1756644760194,0.5539888,108510.0,108500.0,2.52121677]
[1756644760605,0.5539888,108510.0,108500.0,2.52021677]
[1756644760808,0.5549888,108510.0,108500.0,2.52021677]
[1756644761386,0.5520188,108510.0,108500.0,2.52021677]
[1756644761804,0.5530188,108510.0,108500.0,2.52021677]
[1756644764922,0.5530188,108510.0,108500.0,2.36597677]
[1756644765159,0.5530188,108510.0,108500.0,2.52021677]
[1756644772526,0.5530188,108510.0,108500.0,2.52017677]
[1756644772702,0.5520188,108510.0,108500.0,2.52017677]
[1756644773102,0.5530188,108510.0,108500.0,2.52017677]
[1756644773446,0.5520188,108510.0,108500.0,2.52017677]
[1756644775002,0.5520188,108510.0,108500.0,2.52117677]
[1756644775142,0.5520188,108510.0,108500.0,2.52217677]
[1756644779774,0.5520188,108510.0,108500.0,2.36797677]
[1756644779944,0.5520188,108510.0,108500.0,2.52217677]
[1756644780575,0.5520188,108510.0,108500.0,2.36797677]
[1756644781186,0.5520188,108510.0,108500.0,2.52217677]
[1756644781387,0.5520188,108510.0,108500.0,2.36797677]
[1756644781590,0.5520188,108510.0,108500.0,2.52217677]
[1756644782046,0.5539988,108510.0,108500.0,2.36797677]
[1756644782250,0.5539988,108510.0,108500.0,2.52217677]
[1756644783380,0.5539988,108510.0,108500.0,1.94559781]
[1756644783592,0.5539988,108510.0,108500.0,2.09979781]
[1756644783795,0.5549988,108510.0,108500.0,2.09979781]
[1756644785708,0.5530188,108510.0,108500.0,2.09979781]
[1756644788345,0.1853148,108510.0,108500.0,2.26365782]
[1756644788550,0.1853148,108510.0,108500.0,2.41365782]
[1756644788763,0.001,108510.0,108500.0,2.41365782]
[1756644788969,0.00060595,108520.0,108510.0,0.60525362]
[1756644789177,0.00060595,108520.0,108510.0,0.85775363]
[1756644789781,0.18490377,108520.0,108510.0,0.11923883]
[1756644789971,0.18490377,108520.0,108510.0,0.27343883]
[1756644790501,0.18590377,108520.0,108510.0,0.27443883]
[1756644791071,0.18490377,108520.0,108510.0,0.27443883]
[1756644791479,0.18490377,108520.0,108510.0,0.27643883]
[1756644791894,0.18490377,108520.0,108510.0,0.27843883]
[1756644792965,0.18490377,108520.0,108510.0,0.27643883]
[1756644793503,0.18490377,108520.0,108510.0,0.27843883]
[1756644793624,0.18490377,108520.0,108510.0,0.27839883]
[1756644794984,0.18490377,108520.0,108510.0,0.12423883]
[1756644795392,0.18490377,108520.0,108510.0,0.27839883]
[1756644795599,0.18490377,108520.0,108510.0,0.12423883]
[1756644795801,0.18490377,108520.0,108510.0,0.27839883]
[1756644795999,0.18490377,108520.0,108510.0,0.12423883]
[1756644796415,0.18490377,108520.0,108510.0,0.27839883]
[1756644796956,0.18490377,108520.0,108510.0,0.18541882]
[1756644798737,0.18490377,108520.0,108510.0,0.03125882]
[1756644798945,0.18688377,108520.0,108510.0,0.18541882]
[1756644799206,0.18688377,108520.0,108510.0,0.18009882]
[1756644799836,0.21458177,108520.0,108510.0,0.17809882]
[1756644799979,0.21458177,108520.0,108510.0,0.18224882]
[1756644800375,0.55702177,108520.0,108510.0,0.004]
[1756644800591,0.71118177,108520.0,108510.0,0.004]
[1756644800790,0.71118177,108520.0,108510.0,0.17909882]
[1756644801767,0.80416178,108520.0,108510.0,0.02493882]
[1756644802008,0.80416178,108520.0,108510.0,0.17909882]
[1756644802212,0.80416178,108520.0,108510.0,0.17609882]
[1756644802412,0.80416178,108520.0,108510.0,0.02193882]
[1756644802655,0.80416178,108520.0,108510.0,0.02293882]
[1756644803043,0.80416178,108520.0,108510.0,0.02193882]
[1756644803539,0.80416178,108520.0,108510.0,0.02293882]
[1756644803839,0.80416178,108520.0,108510.0,0.02193882]
[1756644804038,0.80416178,108520.0,108510.0,0.02093882]
[1756644804218,0.80516178,108520.0,108510.0,0.02093882]
[1756644807025,0.80086178,108520.0,108510.0,0.02093882]
[1756644807251,0.80284178,108520.0,108510.0,0.02408882]
[1756644807478,0.80223583,108520.0,108510.0,0.02093882]
[1756644807858,0.80287424,108520.0,108510.0,0.02093882]
[1756644809174,0.80223583,108520.0,108510.0,0.02093882]
[1756644810794,0.80287233,108520.0,108510.0,0.02093882]
[1756644811196,0.80223583,108520.0,108510.0,0.02093882]
[1756644812443,0.80287499,108520.0,108510.0,0.02093882]
[1756644813835,0.80531499,108520.0,108510.0,0.02093882]
[1756644814244,0.80467583,108520.0,108510.0,0.02093882]
[1756644814450,0.80532055,108520.0,108510.0,0.02093882]
[1756644820431,0.80288055,108520.0,108510.0,0.02093882]
[1756644821637,0.61858273,108520.0,108510.0,0.02093882]
[1756644821902,0.80142015,108520.0,108510.0,0.02093882]
[1756644823213,0.80130015,108520.0,108510.0,0.02093882]
[1756644825299,0.80130015,108520.0,108510.0,0.02618882]
[1756644825500,0.79932015,108520.0,108510.0,0.02618882]
[1756644826096,0.64516015,108520.0,108510.0,0.02618882]
[1756644826305,0.79932015,108520.0,108510.0,0.02618882]
[1756644826566,0.64516015,108520.0,108510.0,0.02618882]
[1756644826768,0.79932015,108520.0,108510.0,0.02618882]
[1756644827200,0.80130015,108520.0,108510.0,0.02618882]
[1756644827406,0.80130015,108520.0,108510.0,0.02093882]
[1756644828383,0.80130015,108520.0,108510.0,0.02618882]
[1756644829014,0.80130015,108520.0,108510.0,0.02093882]
[1756644829852,0.80130015,108520.0,108510.0,0.02605882]
[1756644831643,0.80130015,108520.0,108510.0,0.02389882]
[1756644831846,0.80130015,108520.0,108510.0,0.02093882]
[1756644832272,0.1843148,108510.0,108500.0,2.07661899]
[1756644832512,0.1843148,108510.0,108500.0,2.07877899]
[1756644832916,0.2120178,108510.0,108500.0,2.07877899]
[1756644833429,0.2120178,108510.0,108500.0,1.92457899]
[1756644833637,0.2120178,108510.0,108500.0,2.07873899]
[1756644839873,0.00474667,108510.0,108500.0,2.07873899]
[1756644840105,0.18906147,108510.0,108500.0,2.07873899]
[1756644843994,0.18906147,108510.0,108500.0,2.09967781]
[1756644847767,0.18906147,108510.0,108500.0,1.94551781]
[1756644847966,0.18906147,108510.0,108500.0,2.09967781]
[1756644852023,0.18906147,108510.0,108500.0,1.94551781]
[1756644852246,0.18906147,108510.0,108500.0,2.09967781]
[1756644853959,0.19104147,108510.0,108500.0,2.09967781]
[1756644854174,0.50128661,108520.0,108500.0,2.09967781]
[1756644854351,0.2120178,108510.0,108500.0,2.09967781]
[1756644854550,0.2120178,108510.0,108500.0,2.07873899]
[1756644859209,0.2120178,108510.0,108500.0,1.92457899]
[1756644859393,0.2120178,108510.0,108500.0,2.07873899]
[1756644861259,0.2120178,108510.0,108500.0,1.92457899]
[1756644861638,0.2120178,108510.0,108500.0,2.07873899]
[1756644867943,0.2120178,108510.0,108500.0,1.92457899]
[1756644868132,0.2120178,108510.0,108500.0,2.07873899]
[1756644878248,0.2127578,108510.0,108500.0,1.92457899]
[1756644878425,0.2127578,108510.0,108500.0,2.07869899]
[1756644878881,0.2127578,108510.0,108500.0,1.92457899]
[1756644879212,0.2127578,108510.0,108500.0,2.07869899]
[1756644879447,0.2120178,108510.0,108500.0,2.07869899]
[1756644879741,0.2127578,108510.0,108500.0,2.07869899]
[1756644881122,0.30573781,108510.0,108500.0,1.50208102]
[1756644881318,0.30573781,108510.0,108500.0,1.42484027]
[1756644881567,0.30573781,108510.0,108500.0,1.10958965]
[1756644881778,0.30573781,108510.0,108500.0,0.95539662]
[1756644881959,0.30573781,108510.0,108500.0,0.68602363]
[1756644882155,0.30573781,108510.0,108500.0,0.56781032]
[1756644882541,0.30573781,108510.0,108500.0,0.58206637]
[1756644883114,0.30573781,108510.0,108500.0,0.42794637]
[1756644883499,0.45985781,108510.0,108500.0,0.58206637]
[1756644883851,0.45985781,108510.0,108500.0,0.58407637]
[1756644884034,0.46085781,108510.0,108500.0,0.58407637]
[1756644885520,0.46085781,108510.0,108500.0,0.42995637]
[1756644886464,0.46085781,108510.0,108500.0,0.42794637]
[1756644886668,0.18433179,108500.0,108490.0,0.09420826]
[1756644886807,0.52433179,108500.0,108490.0,0.26926708]
[1756644887012,0.52433179,108500.0,108490.0,0.27127708]
[1756644887351,0.55203679,108500.0,108490.0,0.11715708]
[1756644887489,0.55203679,108500.0,108490.0,0.27127708]
[1756644888536,0.55203679,108500.0,108490.0,0.11815708]
[1756644888749,0.55203679,108500.0,108490.0,0.27547708]
[1756644888943,0.55203679,108500.0,108490.0,0.27647708]
[1756644907686,0.55203679,108500.0,108490.0,0.27643708]
[1756644914457,0.55203679,108500.0,108490.0,0.36941709]
[1756644914857,0.52433179,108500.0,108490.0,0.36941709]
[1756644918460,0.3677,108500.0,108490.0,0.36941709]
[1756644918659,0.55203179,108500.0,108490.0,0.36941709]
[1756644919390,0.55203179,108500.0,108490.0,0.36937709]
[1756644923216,0.55401179,108500.0,108490.0,0.36937709]
[1756644923420,0.55703179,108500.0,108490.0,0.09620826]
[1756644923932,0.55703179,108500.0,108490.0,0.11714708]
[1756644924164,0.55703179,108500.0,108490.0,0.27118708]
[1756644928219,0.55693179,108500.0,108490.0,0.27118708]
[1756644930164,0.55193179,108500.0,108490.0,0.27636708]
[1756644931032,0.55391179,108500.0,108490.0,0.27636708]
[1756644932183,0.55193179,108500.0,108490.0,0.27636708]
[1756644932824,0.55391179,108500.0,108490.0,0.27636708]
[1756644933255,0.55391179,108500.0,108490.0,0.27118708]
[1756644934187,0.55693179,108500.0,108490.0,0.11714708]
[1756644934405,0.55693179,108500.0,108490.0,0.27118708]
[1756644936055,0.55693179,108500.0,108490.0,0.11614708]
[1756644936301,0.55693179,108500.0,108490.0,0.27018708]
[1756644936862,0.55693179,108500.0,108490.0,0.27536708]
[1756644936863,0.55391179,108500.0,108490.0,0.27536708]
[1756644937288,0.55391179,108500.0,108490.0,0.27436708]
[1756644937488,0.55391179,108500.0,108490.0,0.12032708]
[1756644937691,0.55391179,108500.0,108490.0,0.27149143]
[1756644937870,0.55391179,108500.0,108490.0,0.27018708]
[1756644938662,0.55391179,108500.0,108490.0,0.27118708]
[1756644940825,0.55391179,108500.0,108490.0,0.11714708]
[1756644940968,0.55391179,108500.0,108490.0,0.27349143]
[1756644941173,0.55391179,108500.0,108490.0,0.27118708]
[1756644942427,0.55311849,108500.0,108490.0,0.27039294]
[1756644944542,0.35462014,108500.0,108490.0,0.27039294]
[1756644945416,0.21401179,108500.0,108490.0,0.27557294]
[1756644948161,0.21401179,108500.0,108490.0,0.27245294]
[1756644949953,0.21401179,108500.0,108490.0,0.27539294]
[1756644950775,0.21401179,108500.0,108490.0,0.27245294]
[1756644951786,0.21401179,108500.0,108490.0,0.27539294]
[1756644957663,0.21401179,108500.0,108490.0,0.25441412]
[1756644957664,0.55401179,108500.0,108490.0,0.25441412]
[1756644957996,0.55401179,108500.0,108490.0,0.24941412]
[1756644959196,0.55401179,108500.0,108490.0,0.25137412]
[1756644959351,0.55401179,108500.0,108490.0,0.25431412]
[1756644961440,0.55401179,108500.0,108490.0,0.10031412]
[1756644961654,0.55401179,108500.0,108490.0,0.25431412]
[1756644962267,0.55401179,108500.0,108490.0,0.25331412]
[1756644962676,0.55401179,108500.0,108490.0,0.25231412]
[1756644963152,0.55501179,108500.0,108490.0,0.25231412]
[1756644963695,0.55401179,108500.0,108490.0,0.25231412]
[1756644964104,0.55401179,108500.0,108490.0,0.25331412]
[1756644965617,0.55401179,108500.0,108490.0,0.25037412]
[1756644965824,0.55401179,108500.0,108490.0,0.09441412]
[1756644966138,0.55401179,108500.0,108490.0,0.24841412]
[1756644966544,0.55501179,108500.0,108490.0,0.24841412]
[1756644967113,0.55501179,108500.0,108490.0,0.09441412]
[1756644967322,0.55501179,108500.0,108490.0,0.24841412]
[1756644967835,0.55401179,108500.0,108490.0,0.24841412]
[1756644968029,0.55401179,108500.0,108490.0,0.24741412]
[1756644968537,0.55401179,108500.0,108490.0,0.25231412]
[1756644968743,0.55401179,108500.0,108490.0,0.09831412]
[1756644968950,0.55401179,108500.0,108490.0,0.25231412]
[1756644969149,0.55401179,108500.0,108490.0,0.24741412]
[1756644969539,0.55501179,108500.0,108490.0,0.24741412]
[1756644969951,0.55501179,108500.0,108490.0,0.24937412]
[1756644970151,0.55401179,108500.0,108490.0,0.23739412]
[1756644970539,0.55401179,108500.0,108490.0,0.23839412]
[1756644970944,0.55401179,108500.0,108490.0,0.24035412]
[1756644971154,0.55401179,108500.0,108490.0,0.24329412]
[1756644973553,0.55203179,108500.0,108490.0,0.24329412]
[1756644983865,0.55717179,108500.0,108490.0,0.08439412]
[1756644984067,0.55717179,108500.0,108490.0,0.08669847]